[Event "SVK ECo-C Extraliga 2021-22"]
[Site "Slovakia"]
[Date "2022.02.20"]
[Round "4"]
[White "Karas, Marek"]
[Black "Turcan, Martin"]
[Result "*"]
[WhiteElo "2285"]
[BlackElo "2019"]
[Annotator "ChessBase"]
[PlyCount "21"]
[EventDate "2021.10.21"]
[EventType "team-tourn"]
[EventCountry "SVK"]
[SourceTitle "playchess.com"]
[Source "ChessBase"]
[SourceQuality "1"]
[TimeControl "40/5400+30:1800+30"]

1. d4 {[%emt 0:00:03]} Nf6 {[%emt 0:01:25]} 2. Nf3 {[%emt 0:00:06]} c5 {[%emt 0:00:16]} 3. d5 {[%emt 0:00:09]} b5 {[%emt 0:03:47]} 4. Bg5 {[%emt 0:00:28]} d6 {[%emt 0:07:38]} 5. Bxf6 {[%emt 0:00:52]} exf6 {[%emt 0:00:24]} 6. e4 {[%emt 0:00:48]} Qb6 {[%emt 0:06:37]} 7. Nbd2 {[%emt 0:00:36]} Bd7 {[%emt 0:05:23]} 8. a4 {[%emt 0:01:42]} Be7 {[%emt 0:04:54]} 9. axb5 {[%emt 0:01:25]} Bxb5 {[%emt 0:02:05]} 10. Bxb5+ {[%emt 0:00:09]} Qxb5 {[%emt 0:00:09]} 11. b3 {[%emt 0:00:32]} *

[Event "SVK ECo-C Extraliga 2021-22"]
[Site "Slovakia"]
[Date "2022.02.20"]
[Round "4.2"]
[White "Nemeth Miklos"]
[Black "Lewtak Damian"]
[Result "1/2-1/2"]
[ECO "B53"]
[WhiteElo "2449"]
[BlackElo "2386"]
[Annotator "RC"]
[PlyCount "28"]
[EventDate "2021.10.21"]
[EventType "team-tourn"]
[EventCountry "SVK"]
[SourceTitle "playchess.com"]
[Source "ChessBase"]
[SourceQuality "1"]
[TimeControl "40/5400+30:1800+30"]

1. e4 {[%emt 0:00:07]} c5 {[%emt 0:00:05]} 2. Nf3 {[%emt 0:00:07]} d6 {[%emt 0:00:05]} 3. d4 {[%emt 0:01:46]} cxd4 {[%emt 0:00:06]} 4. Qxd4 {[%emt 0:00:03]} Nf6 {[%emt 0:00:07]} 5. Nc3 {[%emt 0:00:04]} Nc6 {[%emt 0:00:08]} 6. Bb5 {[%emt 0:00:04]} Bd7 {[%emt 0:00:08]} 7. Bxc6 {[%emt 0:00:05]} Bxc6 {[%emt 0:00:09]} 8. Bg5 {[%emt 0:00:04]} e6 {[%emt 0:00:30]} 9. O-O-O {[%emt 0:00:42]} Be7 {[%emt 0:05:07]} 10. Qd3 {[%emt 0:00:24]} Qa5 {[%emt 0:00:22]} 11. h4 {[%emt 0:00:09]} h6 {[%emt 0:04:16]} 12. Bd2 {[%emt 0:00:04]} Qa6 {[%emt 0:00:20]} 13. Qxa6 {[%emt 0:00:04]} bxa6 {[%emt 0:00:05]} 14. Rde1 {[%emt 0:05:19]} e5 {[%emt 0:07:16]} 1/2-1/2

[Event "SVK ECo-C Extraliga 2021-22"]
[Site "Slovakia"]
[Date "2022.02.20"]
[Round "4.3"]
[White "Motuz Karol"]
[Black "Bokros Albert"]
[Result "0-1"]
[ECO "E39"]
[WhiteElo "2315"]
[BlackElo "2447"]
[Annotator "RC"]
[PlyCount "76"]
[EventDate "2021.10.21"]
[EventType "team-tourn"]
[EventCountry "SVK"]
[SourceTitle "playchess.com"]
[Source "ChessBase"]
[SourceQuality "1"]
[TimeControl "40/5400+30:1800+30"]

1. d4 {[%emt 0:00:05]} Nf6 {[%emt 0:00:14]} 2. c4 {[%emt 0:00:20]} e6 {[%emt 0:00:08]} 3. Nc3 {[%emt 0:00:34]} Bb4 {[%emt 0:00:09]} 4. Qc2 {[%emt 0:00:57]} c5 {[%emt 0:01:14]} 5. dxc5 {[%emt 0:02:27]} Bxc5 {[%emt 0:01:33]} 6. Nf3 {[%emt 0:01:00]} Nc6 {[%emt 0:02:28]} 7. Bg5 {[%emt 0:02:59]} h6 {[%emt 0:05:20]} 8. Bh4 {[%emt 0:00:55]} O-O {[%emt 0:01:44]} 9. e3 {[%emt 0:03:17]} Be7 {[%emt 0:01:49]} 10. Be2 {[%emt 0:02:43]} b6 {[%emt 0:01:41]} 11. O-O {[%emt 0:00:57]} Bb7 {[%emt 0:00:38]} 12. Rfd1 {[%emt 0:02:30]} Rc8 {[%emt 0:01:15]} 13. Rd2 {[%emt 0:13:00]} Na5 {[%emt 0:06:25]} 14. b3 {[%emt 0:06:36]} d5 {[%emt 0:02:01]} 15. e4 {[%emt 0:07:29]} Qe8 {[%emt 0:06:55]} 16. e5 {[%emt 0:06:46]} Ne4 {[%emt 0:01:46]} 17. Nxe4 {[%emt 0:11:39]} dxe4 {[%emt 0:03:35]} 18. Bxe7 {[%emt 0:00:57]} Qxe7 {[%emt 0:01:01]} 19. Ne1 {[%emt 0:03:49]} Qc5 {[%emt 0:06:27]} 20. Qc3 {[%emt 0:01:36]} Nc6 {[%emt 0:01:22]} 21. Rd7 {[%emt 0:02:16]} Rb8 {[%emt 0:01:53]} 22. Rad1 {[%emt 0:04:03]} Qxe5 {[%emt 0:01:47]} 23. Qe3 {[%emt 0:01:39]} f5 {[%emt 0:04:20]} 24. g3 {[%emt 0:01:38]} Qf6 {[%emt 0:04:28]} 25. f4 {[%emt 0:02:41]} Rfd8 {[%emt 0:03:35]} 26. c5 {[%emt 0:02:47]} Nb4 {[%emt 0:07:30]} 27. cxb6 {[%emt 0:06:20]} Nd5 {[%emt 0:03:19]} 28. R1xd5 {[%emt 0:01:35]} Bxd5 {[%emt 0:01:24]} 29. bxa7 {[%emt 0:01:32]} Ra8 {[%emt 0:01:04]} 30. Rc7 {[%emt 0:04:17]} Rdc8 {[%emt 0:01:01]} 31. Rxc8+ {[%emt 0:01:27]} Rxc8 {[%emt 0:00:16]} 32. Ba6 {[%emt 0:00:55]} Ra8 {[%emt 0:01:07]} 33. Qb6 {[%emt 0:02:28]} Qa1 {[%emt 0:05:41]} 34. Kf1 {[%emt 0:01:11]} Qxa2 {[%emt 0:00:32]} 35. b4 {[%emt 0:01:35]} e3 {[%emt 0:01:24]} 36. Nd3 {[%emt 0:00:20]} Qg2+ {[%emt 0:00:30]} 37. Ke1 {[%emt 0:00:06]} Qd2+ {[%emt 0:00:55]} 38. Kf1 {[%emt 0:00:30]} e2+ {[%emt 0:01:10]} 0-1

[Event "SVK ECo-C Extraliga 2021-22"]
[Site "Slovakia"]
[Date "2022.02.20"]
[Round "4.4"]
[White "Borhy Marcell"]
[Black "Vojtek Vladimir"]
[Result "1-0"]
[ECO "D06"]
[WhiteElo "2381"]
[BlackElo "2288"]
[Annotator "ChessBase"]
[PlyCount "71"]
[EventDate "2021.10.21"]
[EventType "team-tourn"]
[EventCountry "SVK"]
[SourceTitle "playchess.com"]
[Source "ChessBase"]
[SourceQuality "1"]
[TimeControl "40/5400+30:1800+30"]

1. Nf3 {[%emt 0:00:06]} d5 {[%emt 0:00:06]} 2. d4 {[%emt 0:00:06]} Bf5 {[%emt 0:00:08]} 3. c4 {[%emt 0:00:07]} e6 {[%emt 0:00:04]} 4. Nc3 {[%emt 0:00:07]} Nc6 {[%emt 0:00:49]} 5. cxd5 {[%emt 0:00:35]} exd5 {[%emt 0:00:06]} 6. Bf4 {[%emt 0:00:06]} Bd6 {[%emt 0:00:34]} 7. Bxd6 {[%emt 0:02:50]} Qxd6 {[%emt 0:00:16]} 8. e3 {[%emt 0:00:07]} Nf6 {[%emt 0:01:28]} 9. Be2 {[%emt 0:00:10]} O-O {[%emt 0:01:03]} 10. O-O {[%emt 0:00:08]} Rfe8 {[%emt 0:04:48]} 11. Rc1 {[%emt 0:00:54]} a6 {[%emt 0:01:04]} 12. Na4 {[%emt 0:07:46]} Ne4 {[%emt 0:04:10]} 13. Nc5 {[%emt 0:02:12]} Nd8 {[%emt 0:21:33]} 14. b4 {[%emt 0:12:20]} a5 {[%emt 0:08:23]} 15. Qa4 {[%emt 0:09:22]} Ne6 {[%emt 0:00:28]} 16. Nh4 {[%emt 0:03:49]} N6xc5 {[%emt 0:15:33]} 17. bxc5 {[%emt 0:10:07]} Qf6 {[%emt 0:09:10]} 18. Nxf5 {[%emt 0:01:42]} Qxf5 {[%emt 0:00:06]} 19. Bd3 {[%emt 0:12:17]} Qg5 {[%emt 0:10:30]} 20. Rc2 {[%emt 0:04:53]} Re7 {[%emt 0:04:17]} 21. Rb1 {[%emt 0:02:22]} c6 {[%emt 0:00:58]} 22. Bxe4 {[%emt 0:03:04]} dxe4 {[%emt 0:00:41]} 23. Rcb2 {[%emt 0:00:07]} h5 {[%emt 0:02:25]} 24. Rxb7 {[%emt 0:00:28]} Re6 {[%emt 0:00:19]} 25. Rb8+ {[%emt 0:03:25]} Rxb8 {[%emt 0:00:02]} 26. Rxb8+ {[%emt 0:00:09]} Kh7 {[%emt 0:00:01]} 27. Qxa5 {[%emt 0:04:40]} Rg6 {[%emt 0:01:07]} 28. g3 {[%emt 0:00:10]} Qg4 {[%emt 0:00:14]} 29. Qe1 {[%emt 0:00:20]} h4 {[%emt 0:01:38]} 30. Rb2 {[%emt 0:01:08]} f5 {[%emt 0:01:28]} 31. Qe2 {[%emt 0:07:19]} Qg5 {[%emt 0:06:10]} 32. a4 {[%emt 0:01:31]} Rf6 {[%emt 0:00:33]} 33. a5 {[%emt 0:00:26]} f4 {[%emt 0:00:04]} 34. exf4 {[%emt 0:00:20]} Rxf4 {[%emt 0:00:13]} 35. Qe3 {[%emt 0:00:32]} hxg3 {[%emt 0:00:11]} 36. hxg3 {[%emt 0:00:06]} 1-0

[Event "SVK ECo-C Extraliga 2021-22"]
[Site "Slovakia"]
[Date "2022.02.20"]
[Round "4.5"]
[White "Zvarik, Martin"]
[Black "Bures, Jaroslav"]
[Result "0-1"]
[ECO "A04"]
[WhiteElo "2233"]
[BlackElo "2411"]
[Annotator "ChessBase"]
[PlyCount "56"]
[EventDate "2021.10.21"]
[EventType "team-tourn"]
[EventCountry "SVK"]
[SourceTitle "playchess.com"]
[Source "ChessBase"]
[SourceQuality "1"]
[TimeControl "40/5400+30:1800+30"]

1. Nf3 {[%emt 0:00:12]} c5 {[%emt 0:00:17]} 2. g3 {[%emt 0:00:13]} Nc6 {[%emt 0:00:31]} 3. Bg2 {[%emt 0:00:06]} e5 {[%emt 0:00:15]} 4. d3 {[%emt 0:00:25]} d5 {[%emt 0:00:25]} 5. O-O {[%emt 0:06:07]} Be7 {[%emt 0:03:10]} 6. c3 {[%emt 0:03:49]} Nf6 {[%emt 0:01:29]} 7. Nbd2 {[%emt 0:01:02]} O-O {[%emt 0:03:30]} 8. e4 {[%emt 0:02:28]} Be6 {[%emt 0:02:00]} 9. Re1 {[%emt 0:04:51]} d4 {[%emt 0:00:13]} 10. Qc2 {[%emt 0:05:09]} Nd7 {[%emt 0:01:20]} 11. a4 {[%emt 0:03:47]} a6 {[%emt 0:01:12]} 12. h3 {[%emt 0:05:03]} b5 {[%emt 0:01:18]} 13. Kh2 {[%emt 0:01:25]} Qb6 {[%emt 0:11:29]} 14. c4 {[%emt 0:02:29]} Nb4 {[%emt 0:04:15]} 15. Qb1 {[%emt 0:02:00]} Rab8 {[%emt 0:07:36]} 16. b3 {[%emt 0:02:47]} f5 {[%emt 0:01:04]} 17. axb5 {[%emt 0:10:40]} axb5 {[%emt 0:00:14]} 18. exf5 {[%emt 0:00:14]} Bxf5 {[%emt 0:01:52]} 19. Ne4 {[%emt 0:00:14]} bxc4 {[%emt 0:00:19]} 20. bxc4 {[%emt 0:00:37]} Qg6 {[%emt 0:04:36]} 21. Ra7 {[%emt 0:04:51]} Nc6 {[%emt 0:04:25]} 22. Rb7 {[%emt 0:00:42]} Rxb7 {[%emt 0:04:12]} 23. Qxb7 {[%emt 0:00:03]} Nb4 {[%emt 0:00:10]} 24. g4 {[%emt 0:05:32]} Bxe4 {[%emt 0:07:28]} 25. Rxe4 {[%emt 0:04:11]} Qd6 {[%emt 0:02:18]} 26. Ne1 {[%emt 0:11:53]} Rxf2 {[%emt 0:02:28]} 27. Kg1 {[%emt 0:00:46]} Ra2 {[%emt 0:00:57]} 28. g5 {[%emt 0:01:49]} Ra1 {[%emt 0:04:53]} 0-1

[Event "SVK ECo-C Extraliga 2021-22"]
[Site "Slovakia"]
[Date "2022.02.20"]
[Round "4.5"]
[White "Veres Andrej"]
[Black "Varga Zoltan"]
[Result "1/2-1/2"]
[ECO "D02"]
[WhiteElo "2185"]
[BlackElo "2390"]
[Annotator "ChessBase"]
[PlyCount "74"]
[EventDate "2021.10.21"]
[EventType "team-tourn"]
[EventCountry "SVK"]
[SourceTitle "playchess.com"]
[Source "ChessBase"]
[SourceQuality "1"]
[TimeControl "40/5400+30:1800+30"]

1. d4 {[%emt 0:00:10]} d5 {[%emt 0:00:09]} 2. Nf3 {[%emt 0:00:26]} c6 {[%emt 0:00:14]} 3. g3 {[%emt 0:00:56]} Nf6 {[%emt 0:00:19]} 4. Bg2 {[%emt 0:00:34]} Bg4 {[%emt 0:00:07]} 5. O-O {[%emt 0:03:43]} Nbd7 {[%emt 0:00:12]} 6. Nbd2 {[%emt 0:00:57]} e6 {[%emt 0:00:12]} 7. b3 {[%emt 0:00:37]} a5 {[%emt 0:00:29]} 8. a4 {[%emt 0:03:07]} Be7 {[%emt 0:01:39]} 9. Bb2 {[%emt 0:00:32]} O-O {[%emt 0:00:06]} 10. c4 {[%emt 0:08:01]} Re8 {[%emt 0:01:14]} 11. Ne5 {[%emt 0:15:41]} Nxe5 {[%emt 0:00:30]} 12. dxe5 {[%emt 0:10:00]} Nd7 {[%emt 0:00:09]} 13. h3 {[%emt 0:00:21]} Bh5 {[%emt 0:01:47]} 14. g4 {[%emt 0:07:42]} Bg6 {[%emt 0:02:23]} 15. f4 {[%emt 0:03:00]} Bc5+ {[%emt 0:12:53]} 16. Kh1 {[%emt 0:03:40]} Be3 {[%emt 0:01:07]} 17. cxd5 {[%emt 0:16:19]} cxd5 {[%emt 0:02:09]} 18. Rf3 {[%emt 0:02:31]} Ba7 {[%emt 0:02:55]} 19. f5 {[%emt 0:04:09]} exf5 {[%emt 0:06:30]} 20. gxf5 {[%emt 0:00:22]} Bh5 {[%emt 0:00:30]} 21. Rd3 {[%emt 0:00:20]} Nxe5 {[%emt 0:00:00]} 22. Rxd5 {[%emt 0:00:25]} Qc7 {[%emt 0:00:00]} 23. Ne4 {[%emt 0:04:16]} Nc6 {[%emt 0:05:28]} 24. Bxg7 {[%emt 0:02:06]} Rxe4 {[%emt 0:03:04]} 25. Bxe4 {[%emt 0:00:17]} Qf4 {[%emt 0:00:09]} 26. Bg2 {[%emt 0:01:20]} Re8 {[%emt 0:04:14]} 27. e3 {[%emt 0:03:26]} Qh4 {[%emt 0:12:40]} 28. Qf1 {[%emt 0:02:00]} Kxg7 {[%emt 0:00:53]} 29. f6+ {[%emt 0:00:31]} Kh6 {[%emt 0:00:23]} 30. e4 {[%emt 0:04:09]} Bb8 {[%emt 0:04:28]} 31. Qe1 {[%emt 0:01:09]} Qxf6 {[%emt 0:13:35]} 32. Rf5 {[%emt 0:00:27]} Qxf5 {[%emt 0:08:55]} 33. exf5 {[%emt 0:00:02]} Rxe1+ {[%emt 0:00:07]} 34. Rxe1 {[%emt 0:00:03]} Bd6 {[%emt 0:00:29]} 35. Rc1 {[%emt 0:00:44]} Ba3 {[%emt 0:03:58]} 36. Re1 {[%emt 0:00:59]} Bb4 {[%emt 0:01:13]} 37. Rc1 {[%emt 0:02:25]} Kg5 {[%emt 0:01:09]} 1/2-1/2

[Event "SVK ECo-C Extraliga 2021-22"]
[Site "Slovakia"]
[Date "2022.02.20"]
[Round "4.6"]
[White "Csonka Attila Istvan"]
[Black "Bombek Peter"]
[Result "1/2-1/2"]
[ECO "C07"]
[WhiteElo "2334"]
[BlackElo "2090"]
[Annotator "ChessBase"]
[PlyCount "60"]
[EventDate "2021.10.21"]
[EventType "team-tourn"]
[EventCountry "SVK"]
[SourceTitle "playchess.com"]
[Source "ChessBase"]
[SourceQuality "1"]
[TimeControl "40/5400+30:1800+30"]

1. e4 {[%emt 0:00:05]} e6 {[%emt 0:00:17]} 2. d4 {[%emt 0:00:05]} d5 {[%emt 0:00:03]} 3. Nd2 {[%emt 0:00:08]} c5 {[%emt 0:00:07]} 4. Ngf3 {[%emt 0:00:36]} Nc6 {[%emt 0:00:05]} 5. Bb5 {[%emt 0:01:16]} cxd4 {[%emt 0:00:50]} 6. Nxd4 {[%emt 0:01:06]} Bd7 {[%emt 0:00:16]} 7. Nxc6 {[%emt 0:00:33]} Bxc6 {[%emt 0:00:09]} 8. Bxc6+ {[%emt 0:00:12]} bxc6 {[%emt 0:00:01]} 9. c4 {[%emt 0:01:43]} Nf6 {[%emt 0:00:20]} 10. O-O {[%emt 0:04:25]} Be7 {[%emt 0:01:58]} 11. Qe2 {[%emt 0:04:58]} O-O {[%emt 0:04:41]} 12. b3 {[%emt 0:11:53]} dxe4 {[%emt 0:07:45]} 13. Nxe4 {[%emt 0:00:49]} Qd4 {[%emt 0:00:27]} 14. Nxf6+ {[%emt 0:00:08]} Bxf6 {[%emt 0:00:31]} 15. Rb1 {[%emt 0:00:05]} Rfd8 {[%emt 0:03:02]} 16. Be3 {[%emt 0:01:49]} Qe4 {[%emt 0:01:29]} 17. Rbd1 {[%emt 0:03:39]} a6 {[%emt 0:02:23]} 18. f3 {[%emt 0:02:55]} Qe5 {[%emt 0:02:12]} 19. Qf2 {[%emt 0:01:12]} Rxd1 {[%emt 0:14:18]} 20. Rxd1 {[%emt 0:00:19]} Rd8 {[%emt 0:00:08]} 21. Rxd8+ {[%emt 0:00:39]} Bxd8 {[%emt 0:00:01]} 22. Bd4 {[%emt 0:00:28]} Qf5 {[%emt 0:06:53]} 23. Qe2 {[%emt 0:04:59]} Qb1+ {[%emt 0:04:53]} 24. Kf2 {[%emt 0:00:20]} Bc7 {[%emt 0:01:21]} 25. Qb2 {[%emt 0:03:53]} Qh1 {[%emt 0:06:05]} 26. Be5 {[%emt 0:07:28]} Bb6+ {[%emt 0:00:49]} 27. Bd4 {[%emt 0:01:25]} Bc7 {[%emt 0:00:47]} 28. Be5 {[%emt 0:00:29]} Bb6+ {[%emt 0:00:04]} 29. Bd4 {[%emt 0:00:24]} Bc7 {[%emt 0:00:06]} 30. Be5 {[%emt 0:00:07]} Bb6+ {[%emt 0:00:05]} 1/2-1/2

[Event "SVK ECo-C Extraliga 2021-22"]
[Site "Slovakia"]
[Date "2022.02.20"]
[Round "4.6"]
[White "Lanc, Alois"]
[Black "Straka, Jozef"]
[Result "0-1"]
[ECO "B15"]
[WhiteElo "2309"]
[BlackElo "2320"]
[Annotator "ChessBase"]
[PlyCount "72"]
[EventDate "2021.10.21"]
[EventType "team-tourn"]
[EventCountry "SVK"]
[SourceTitle "playchess.com"]
[Source "ChessBase"]
[SourceQuality "1"]
[TimeControl "40/5400+30:1800+30"]

1. e4 {[%emt 0:00:02]} c6 {[%emt 0:00:55]} 2. d4 {[%emt 0:01:07]} d5 {[%emt 0:00:05]} 3. Nc3 {[%emt 0:00:31]} dxe4 {[%emt 0:00:06]} 4. Nxe4 {[%emt 0:00:04]} Nf6 {[%emt 0:00:05]} 5. Nxf6+ {[%emt 0:00:16]} exf6 {[%emt 0:00:07]} 6. c3 {[%emt 0:00:32]} Bd6 {[%emt 0:00:14]} 7. Bd3 {[%emt 0:00:17]} O-O {[%emt 0:00:09]} 8. Qc2 {[%emt 0:01:33]} Re8+ {[%emt 0:00:06]} 9. Ne2 {[%emt 0:00:34]} h5 {[%emt 0:00:18]} 10. Bd2 {[%emt 0:03:53]} Nd7 {[%emt 0:04:48]} 11. O-O-O {[%emt 0:01:04]} Nf8 {[%emt 0:01:46]} 12. Kb1 {[%emt 0:08:07]} Be6 {[%emt 0:01:42]} 13. Ng3 {[%emt 0:06:29]} g6 {[%emt 0:17:23]} 14. Ne4 {[%emt 0:06:57]} b5 {[%emt 0:06:56]} 15. h3 {[%emt 0:06:36]} Be7 {[%emt 0:16:56]} 16. f3 {[%emt 0:13:04]} f5 {[%emt 0:10:00]} 17. Nf2 {[%emt 0:03:20]} Qd5 {[%emt 0:05:19]} 18. b3 {[%emt 0:01:39]} h4 {[%emt 0:03:35]} 19. Bc1 {[%emt 0:06:26]} a5 {[%emt 0:02:34]} 20. Rde1 {[%emt 0:07:30]} Bf6 {[%emt 0:01:25]} 21. Nd1 {[%emt 0:00:22]} b4 {[%emt 0:03:22]} 22. Bb2 {[%emt 0:09:07]} a4 {[%emt 0:04:48]} 23. Bc4 {[%emt 0:03:26]} axb3 {[%emt 0:01:00]} 24. Bxb3 Qd6 {[%emt 0:03:52]} 25. cxb4 {[%emt 0:05:20]} Qxb4 {[%emt 0:02:19]} 26. d5 {[%emt 0:01:11]} cxd5 {[%emt 0:08:13]} 27. Bxf6 {[%emt 0:00:19]} d4 {[%emt 0:00:01]} 28. Bxh4 {[%emt 0:10:09]} d3 29. Qxd3 Qxh4 30. Re2 Reb8 31. Nb2 Bxb3 32. axb3 Ra3 33. Rc1 Raxb3 34. Rc3 R3b7 35. Qd6 Qa4 36. Rec2 Ra8 0-1

[Event "SVK ECo-C Extraliga 2021-22"]
[Site "Slovakia"]
[Date "2022.02.20"]
[Round "4.7"]
[White "Schwarz, Dusan"]
[Black "Danada, Tomas"]
[Result "1/2-1/2"]
[ECO "A30"]
[WhiteElo "2301"]
[BlackElo "2337"]
[Annotator "ChessBase"]
[PlyCount "58"]
[EventDate "2021.10.21"]
[EventType "team-tourn"]
[EventCountry "SVK"]
[SourceTitle "playchess.com"]
[Source "ChessBase"]
[SourceQuality "1"]
[TimeControl "40/5400+30:1800+30"]

1. Nf3 {[%emt 0:00:07]} c5 {[%emt 0:00:12]} 2. c4 {[%emt 0:00:39]} Nf6 {[%emt 0:00:06]} 3. Nc3 {[%emt 0:00:17]} e6 {[%emt 0:00:29]} 4. g3 {[%emt 0:00:32]} b6 {[%emt 0:00:06]} 5. Bg2 {[%emt 0:00:16]} Bb7 {[%emt 0:00:03]} 6. O-O {[%emt 0:00:23]} Be7 {[%emt 0:00:05]} 7. Re1 {[%emt 0:01:02]} d5 {[%emt 0:00:23]} 8. cxd5 {[%emt 0:00:38]} exd5 {[%emt 0:00:03]} 9. d4 {[%emt 0:00:15]} Na6 {[%emt 0:04:31]} 10. b3 {[%emt 0:08:34]} O-O {[%emt 0:00:46]} 11. Bb2 {[%emt 0:00:19]} Re8 {[%emt 0:02:52]} 12. Rc1 {[%emt 0:02:43]} Bf8 {[%emt 0:05:51]} 13. e3 {[%emt 0:10:51]} Qd7 {[%emt 0:07:47]} 14. Ne5 {[%emt 0:17:18]} Qf5 {[%emt 0:01:35]} 15. g4 {[%emt 0:03:39]} Qe6 {[%emt 0:00:53]} 16. h3 {[%emt 0:05:27]} Nc7 {[%emt 0:09:49]} 17. Na4 {[%emt 0:04:16]} Bd6 {[%emt 0:02:38]} 18. f4 {[%emt 0:05:40]} cxd4 {[%emt 0:08:14]} 19. Bxd4 {[%emt 0:01:39]} Nb5 {[%emt 0:05:10]} 20. Nc3 {[%emt 0:09:25]} Nxc3 {[%emt 0:07:29]} 21. Bxc3 {[%emt 0:00:31]} Ne4 {[%emt 0:00:57]} 22. Bd4 {[%emt 0:04:09]} Rac8 {[%emt 0:01:55]} 23. Re2 {[%emt 0:02:10]} Rxc1 {[%emt 0:10:15]} 24. Qxc1 {[%emt 0:00:18]} f6 {[%emt 0:01:39]} 25. Nf3 {[%emt 0:06:30]} Ba6 {[%emt 0:01:50]} 26. Rc2 {[%emt 0:00:14]} Bd3 {[%emt 0:00:33]} 27. Rc6 {[%emt 0:00:24]} Bb5 {[%emt 0:00:05]} 28. Rc2 {[%emt 0:00:09]} Bd3 {[%emt 0:02:31]} 29. Rc6 {[%emt 0:00:07]} Bb5 {[%emt 0:00:06]} 1/2-1/2

[Event "SVK ECo-C Extraliga 2021-22"]
[Site "Slovakia"]
[Date "2022.02.20"]
[Round "4.7"]
[White "Rucek Kristian"]
[Black "Finek Vaclav"]
[Result "0-1"]
[ECO "D99"]
[WhiteElo "2109"]
[BlackElo "2419"]
[Annotator "ChessBase"]
[PlyCount "76"]
[EventDate "2021.10.21"]
[EventType "team-tourn"]
[EventCountry "SVK"]
[SourceTitle "playchess.com"]
[Source "ChessBase"]
[SourceQuality "1"]
[TimeControl "40/5400+30:1800+30"]

1. d4 {[%emt 0:00:05]} Nf6 {[%emt 0:00:05]} 2. c4 {[%emt 0:00:03]} g6 {[%emt 0:00:06]} 3. Nc3 {[%emt 0:00:04]} d5 {[%emt 0:00:04]} 4. Nf3 {[%emt 0:00:04]} Bg7 {[%emt 0:00:05]} 5. Qb3 {[%emt 0:00:08]} dxc4 {[%emt 0:00:10]} 6. Qxc4 {[%emt 0:00:02]} O-O {[%emt 0:00:37]} 7. e4 {[%emt 0:00:07]} Nfd7 {[%emt 0:01:01]} 8. Be3 {[%emt 0:00:11]} Nb6 {[%emt 0:00:14]} 9. Qb3 {[%emt 0:00:07]} Bg4 {[%emt 0:01:15]} 10. Rd1 {[%emt 0:00:23]} Nc6 {[%emt 0:00:55]} 11. d5 {[%emt 0:00:06]} Ne5 {[%emt 0:00:04]} 12. Be2 {[%emt 0:00:06]} Nxf3+ {[%emt 0:03:15]} 13. gxf3 {[%emt 0:00:08]} Bh5 {[%emt 0:00:04]} 14. Kf1 {[%emt 0:00:10]} Qd6 {[%emt 0:11:17]} 15. Kg2 {[%emt 0:05:09]} Be5 {[%emt 0:06:51]} 16. h4 {[%emt 0:04:28]} a6 {[%emt 0:18:27]} 17. Rd3 {[%emt 0:24:09]} Kh8 {[%emt 0:03:31]} 18. Bh6 {[%emt 0:06:39]} Rg8 {[%emt 0:03:03]} 19. Bd1 {[%emt 0:07:37]} g5 {[%emt 0:14:26]} 20. hxg5 {[%emt 0:25:43]} Qxh6 {[%emt 0:00:13]} 21. f4 {[%emt 0:00:05]} Bxf4 {[%emt 0:00:29]} 22. Rxh5 {[%emt 0:00:17]} Rxg5+ {[%emt 0:00:06]} 23. Rxg5 {[%emt 0:00:06]} Qxg5+ {[%emt 0:00:39]} 24. Kf1 {[%emt 0:00:12]} Rg8 {[%emt 0:00:42]} 25. Bf3 {[%emt 0:00:33]} Nd7 {[%emt 0:01:47]} 26. Ne2 {[%emt 0:04:36]} Ne5 {[%emt 0:03:21]} 27. Rd1 {[%emt 0:00:12]} Rg6 {[%emt 0:06:32]} 28. Nd4 {[%emt 0:02:04]} b5 {[%emt 0:08:54]} 29. Qc3 {[%emt 0:01:10]} Qf6 {[%emt 0:02:21]} 30. Ke2 {[%emt 0:04:24]} Nc4 {[%emt 0:03:22]} 31. b3 {[%emt 0:04:01]} Nd6 {[%emt 0:00:47]} 32. Qc2 {[%emt 0:03:23]} Be5 {[%emt 0:05:14]} 33. Nc6 {[%emt 0:00:01]} Rg5 {[%emt 0:00:16]} 34. Rh1 {[%emt 0:00:59]} b4 {[%emt 0:01:57]} 35. Rh3 {[%emt 0:04:12]} Nb5 {[%emt 0:00:14]} 36. Qd3 {[%emt 0:01:30]} Rg1 {[%emt 0:02:41]} 37. Rh5 {[%emt 0:03:04]} Nc3+ {[%emt 0:00:16]} 38. Kd2 {[%emt 0:00:04]} Bf4+ {[%emt 0:00:05]} 0-1

[Event "SVK ECo-C Extraliga 2021-22"]
[Site "Slovakia"]
[Date "2022.02.20"]
[Round "4.8"]
[White "Farkas Gabor"]
[Black "Kovacik Emil"]
[Result "1-0"]
[ECO "C45"]
[WhiteElo "2337"]
[BlackElo "2039"]
[Annotator "ChessBase"]
[PlyCount "59"]
[EventDate "2021.10.21"]
[EventType "team-tourn"]
[EventCountry "SVK"]
[SourceTitle "playchess.com"]
[Source "ChessBase"]
[SourceQuality "1"]
[TimeControl "40/5400+30:1800+30"]

1. e4 {[%emt 0:00:05]} e5 {[%emt 0:01:20]} 2. Nf3 {[%emt 0:00:09]} Nc6 {[%emt 0:00:09]} 3. d4 {[%emt 0:00:15]} exd4 {[%emt 0:00:22]} 4. Nxd4 {[%emt 0:00:08]} Nf6 {[%emt 0:00:08]} 5. Nxc6 {[%emt 0:00:40]} bxc6 {[%emt 0:01:19]} 6. Qe2 {[%emt 0:06:07]} Qe7 {[%emt 0:05:59]} 7. Nc3 {[%emt 0:03:03]} d5 {[%emt 0:00:36]} 8. exd5 {[%emt 0:03:43]} cxd5 {[%emt 0:02:52]} 9. Nb5 {[%emt 0:02:31]} Be6 {[%emt 0:04:15]} 10. Bf4 {[%emt 0:01:55]} Qb4+ {[%emt 0:02:39]} 11. Qd2 {[%emt 0:16:02]} Qxd2+ {[%emt 0:01:08]} 12. Kxd2 {[%emt 0:06:33]} Ne4+ {[%emt 0:02:31]} 13. Ke1 {[%emt 0:01:00]} Bc5 {[%emt 0:12:32]} 14. Nxc7+ {[%emt 0:01:46]} Ke7 {[%emt 0:01:07]} 15. Nxa8 {[%emt 0:07:40]} Nxf2 {[%emt 0:03:31]} 16. b4 {[%emt 0:02:22]} Bd4 {[%emt 0:13:17]} 17. c3 {[%emt 0:00:15]} Bxc3+ {[%emt 0:02:20]} 18. Kxf2 {[%emt 0:00:08]} Bxa1 {[%emt 0:00:06]} 19. Nc7 {[%emt 0:00:30]} Bc3 {[%emt 0:01:01]} 20. a3 {[%emt 0:01:46]} Bd4+ {[%emt 0:03:29]} 21. Be3 {[%emt 0:06:33]} Be5 {[%emt 0:03:52]} 22. Bc5+ {[%emt 0:01:11]} Kf6 {[%emt 0:00:22]} 23. Nxe6 {[%emt 0:00:38]} fxe6 {[%emt 0:01:24]} 24. Bd3 {[%emt 0:00:11]} Bb8 {[%emt 0:00:34]} 25. Rf1 {[%emt 0:00:57]} e5 {[%emt 0:00:56]} 26. Kg3+ {[%emt 0:03:17]} Kg5 {[%emt 0:01:24]} 27. Be3+ {[%emt 0:00:22]} Kh5 {[%emt 0:00:18]} 28. Kh3 {[%emt 0:08:55]} e4 {[%emt 0:00:28]} 29. Be2+ {[%emt 0:00:37]} Kg6 {[%emt 0:00:01]} 30. Bg4 {[%emt 0:00:29]} 1-0